bitfinex-derivatives/quotes_ETHF0:USTF0_20250417
["timestamp","ask_amount","ask_price","bid_price","bid_amount"]
[1744856152468,4.54403,1585.0,1584.9,3.2078]
[1744856153064,3.2821,1585.0,1584.9,3.2078]
[1744856153272,1.26193,1585.0,1584.9,3.2078]
[1744856153472,1.26193,1585.0,1584.9,5.7561]
[1744856154072,7.1903315,1585.1,1584.9,5.7561]
[1744856154274,7.1903315,1585.1,1585.0,1.7294]
[1744856154667,2.9793315,1585.1,1585.0,1.7294]
[1744856154864,7.1903315,1585.1,1585.0,1.7294]
[1744856155272,1.26193,1585.0,1584.9,3.2078]
[1744856155471,2.96993,1585.0,1584.9,3.2078]
[1744856156769,1.708,1585.0,1584.7,8.97314362]
[1744856156970,1.26208,1584.8,1584.7,8.97314362]
[1744856157174,4.211,1584.8,1584.7,11.94620362]
[1744856157473,4.211,1584.8,1584.7,10.68404362]
[1744856157678,4.211,1584.8,1584.7,11.94620362]
[1744856158366,4.211,1584.8,1584.7,10.68404362]
[1744856159067,5.47308,1584.8,1584.7,10.68404362]
[1744856160866,6.29268,1584.8,1584.7,10.68404362]
[1744856161663,6.29268,1584.8,1584.7,4.9187]
[1744856163573,4.211,1584.8,1584.7,4.9187]
[1744856163773,5.47395,1585.0,1584.8,1.26204]
[1744856163971,0.8439515,1585.1,1584.9,5.7348]
[1744856163972,0.0094515,1585.1,1584.9,5.7348]
[1744856164180,0.0094515,1585.1,1585.0,3.76773]
[1744856164673,4.212,1585.3,1585.2,1.26177]
[1744856164877,1.26153,1585.5,1585.2,3.2078]
[1744856165177,4.212,1585.5,1585.4,4.46941]
[1744856165580,4.212,1585.5,1585.4,6.14251]
[1744856165772,0.0094515,1585.6,1585.5,1.26153]
[1744856165974,0.0094515,1585.6,1585.5,8.69997362]
[1744856166176,0.0094515,1585.6,1585.5,13.69997362]
[1744856168081,4.212,1586.0,1585.8,1.26122]
[1744856168380,4.212,1586.0,1585.5,12.43844362]
[1744856168381,4.212,1586.0,1585.9,6.17141]
[1744856168779,92.94801,1586.2,1586.0,1.26113]
[1744856168978,5.4803715,1586.3,1586.1,6.17123]
[1744856169179,5.4803715,1586.3,1586.2,1.7024]
[1744856170885,5.4803715,1586.3,1586.1,3.2078]
[1744856170886,1.26097,1586.2,1586.1,3.2078]
[1744856171183,1.26129,1585.8,1585.7,5.76534362]
[1744856171379,1.26137,1585.7,1585.6,1.6631]
[1744856171580,3.00237,1585.7,1585.6,1.6631]
[1744856172278,6.741,1585.7,1585.3,3.2172515]
[1744856172587,1.26153,1585.5,1585.4,1.6631]
[1744856172882,1.26161,1585.4,1585.3,0.0094515]
[1744856173087,3.00261,1585.4,1585.3,0.0094515]
[1744856174988,8.00261,1585.4,1585.3,0.0094515]
[1744856175292,8.88291,1585.4,1585.3,0.0094515]
[1744856175684,3.00261,1585.4,1585.3,0.0094515]
[1744856175991,5.47053,1585.5,1585.3,3.2172515]
[1744856176291,1.6357,1585.5,1585.4,1.6104]
[1744856176490,1.26153,1585.5,1585.4,1.6104]
[1744856177193,2.94263,1585.5,1585.4,1.6104]
[1744856177492,1.26153,1585.5,1585.4,1.6104]
[1744856177691,3.7466,1585.6,1585.4,1.6104]
[1744856177995,1.26153,1585.5,1585.4,1.6104]
[1744856178792,2.94263,1585.5,1585.4,1.6104]
[1744856180487,1.26161,1585.4,1585.3,0.0094515]
[1744856180683,7.06301,1585.4,1585.3,3.2172515]
[1744856182297,7.06301,1585.4,1585.3,0.0094515]
[1744856183488,12.06301,1585.4,1585.3,0.0094515]
[1744856183692,15.27081,1585.4,1585.3,1.5e-06]
[1744856184191,15.38678863,1585.4,1585.3,1.5e-06]
[1744856184999,56.07081,1585.4,1585.3,1.5e-06]
[1744856186208,3.15467,1585.1,1584.7,3.2078]
[1744856186404,1.26208,1584.8,1584.7,3.2078]
[1744856186709,1.26224,1584.6,1584.5,7.46594362]
[1744856187010,5.47122,1584.7,1584.5,2.96292]
[1744856187204,1.2715815,1584.8,1584.6,3.2078]
[1744856187412,1.2715815,1584.8,1584.7,1.7006]
[1744856187712,5.4815815,1584.8,1584.7,1.7006]
[1744856189914,0.0094515,1584.8,1584.7,6.26216]
[1744856190105,1.2715315,1584.8,1584.7,6.721]
[1744856190610,1.2715315,1584.8,1584.7,1.721]
[1744856190810,0.0094515,1584.8,1584.7,2.98316]
[1744856191009,0.0094515,1584.8,1584.7,8.74850362]
[1744856191315,1.2715315,1584.8,1584.7,7.48634362]
[1744856193217,2.9938315,1584.8,1584.7,7.48634362]
[1744856193418,2.9938315,1584.8,1584.7,5.76534362]
[1744856196824,1.26224,1584.6,1584.5,1.7044]
[1744856197007,5.47224,1584.6,1584.5,1.7044]
[1744856197212,1.26232,1584.5,1584.4,0.0094515]
[1744856197413,2.89762,1584.5,1584.4,0.0094515]
[1744856197914,4.57562,1584.5,1584.4,0.0094515]
[1744856201018,4.21,1584.5,1584.4,1.2717915]
[1744856201223,4.21,1584.7,1584.5,1.26225]
[1744856201416,5.47218,1584.7,1584.6,4.944]
[1744856201817,5.47218,1584.7,1584.6,1.7362]
[1744856202325,4.21,1584.7,1584.6,2.99844]
[1744856202516,5.47216,1584.7,1584.6,7.04084]
[1744856202718,5.47216,1584.7,1584.6,5.7786]
[1744856203225,5.47216,1584.7,1584.6,1.7362]
[1744856205125,1.26224,1584.6,1584.5,1.7157]
[1744856205328,1.26232,1584.5,1584.4,1.6519515]
[1744856205629,1.26232,1584.5,1584.4,0.0094515]
[1744856205830,2.08572,1584.5,1584.4,0.0094515]
[1744856206930,2.08572,1584.5,1584.4,1.6519515]
[1744856207924,1.26232,1584.5,1584.4,1.6519515]
[1744856208123,1.26228,1584.6,1584.4,4.8597515]
[1744856208318,1.26228,1584.6,1584.5,0.7981]
[1744856208527,5.47328,1584.6,1584.5,2.4087]
[1744856209131,5.47328,1584.6,1584.5,1.6106]
[1744856209431,7.09998,1584.6,1584.5,1.6106]
[1744856210332,5.47328,1584.6,1584.5,1.6106]
[1744856213640,4.2204515,1584.8,1584.5,1.6106]
[1744856213939,1.26216,1584.7,1584.6,4.015]
[1744856214145,1.26216,1584.7,1584.6,5.7234]
[1744856214334,2.97096,1584.7,1584.6,4.9162]
[1744856215532,1.26216,1584.7,1584.6,4.9162]
[1744856215934,2.97096,1584.7,1584.6,4.9162]
[1744856216136,3.78376,1584.7,1584.6,4.9162]
[1744856216938,1.26232,1584.5,1584.4,5.77479512]
[1744856218438,5.47332,1584.5,1584.4,7.52609512]
[1744856218636,7.07872,1584.5,1584.4,7.52609512]
[1744856219335,7.07872,1584.5,1584.4,1.7607515]
[1744856219538,7.07872,1584.5,1584.4,0.0094515]
[1744856222744,4.211,1584.5,1584.4,1.2718515]
[1744856222939,4.211,1584.5,1584.4,4.6625515]
[1744856224049,5.47332,1584.5,1584.4,4.6625515]
[1744856224343,4.211,1584.5,1584.4,4.6625515]
[1744856225650,1.26222,1584.7,1584.5,1.2623]
[1744856225850,5.47322,1584.7,1584.6,6.07814]
[1744856226150,5.47322,1584.7,1584.6,4.8159]
[1744856227853,1.26232,1584.5,1584.4,4.8875515]
[1744856228049,3.782,1584.6,1584.4,4.8875515]
[1744856228249,1.26224,1584.6,1584.5,1.6081]
[1744856229049,1.26224,1584.6,1584.5,7.37344362]
[1744856229550,7.16723,1584.7,1584.5,8.63572362]
[1744856229753,7.16723,1584.7,1584.6,4.8359]
[1744856229949,7.16723,1584.7,1584.6,1.6281]
[1744856230554,7.16723,1584.7,1584.6,4.8359]
[1744856231147,7.16723,1584.7,1584.6,1.6281]
[1744856231354,7.16723,1584.7,1584.6,4.8359]
[1744856231658,1.26224,1584.6,1584.5,5.76534362]
[1744856231955,2.90364,1584.6,1584.5,5.76534362]
[1744856234652,7.90364,1584.6,1584.5,5.76534362]
[1744856234852,1.26232,1584.5,1584.4,0.0094515]
[1744856235052,4.60292,1584.5,1584.4,0.0094515]
[1744856236744,4.60292,1584.5,1584.4,1.6853515]
[1744856238459,5.48532,1584.6,1584.4,1.6853515]
[1744856238761,1.26232,1584.5,1584.4,2.5040515]
[1744856239559,1.26226,1584.6,1584.4,9.53176512]
[1744856239754,5.48526,1584.6,1584.5,4.9082]
[1744856240557,4.223,1584.6,1584.5,4.9082]
[1744856240752,5.48524,1584.6,1584.5,4.9082]
[1744856242348,4.223,1584.6,1584.5,6.17052]
[1744856242653,4.223,1584.7,1584.5,4.9082]
[1744856242855,5.48521,1584.7,1584.6,1.6359]
[1744856243049,5.48521,1584.7,1584.6,2.4645]
[1744856248467,5.48521,1584.7,1584.6,1.6359]
[1744856248662,1.26232,1584.5,1584.4,6.59349512]
[1744856248869,1.26232,1584.5,1584.4,7.85589512]
[1744856249563,1.26232,1584.5,1584.4,6.59349512]
[1744856249961,2.92582,1584.5,1584.4,8.18689512]
[1744856250667,2.92582,1584.5,1584.4,9.44929512]
[1744856250866,2.92582,1584.5,1584.4,8.18689512]
[1744856251066,2.92582,1584.5,1584.4,7.36819512]
[1744856252567,2.92582,1584.5,1584.4,1.6028515]
[1744856252867,2.92582,1584.5,1584.4,0.0094515]
[1744856254272,2.92582,1584.5,1584.4,1.6576515]
[1744856256270,2.92582,1584.5,1584.4,0.0094515]
[1744856257160,1.7382,1584.6,1584.4,2.9183515]
[1744856257361,4.62214,1584.6,1584.5,1.6465]
[1744856260070,1.26232,1584.5,1584.4,0.8425515]
[1744856260369,2.98012,1584.5,1584.4,2.6078515]
[1744856261066,2.98012,1584.5,1584.4,1.7747515]
[1744856261568,2.98012,1584.5,1584.4,0.0094515]
[1744856263580,2.98012,1584.5,1584.4,1.6191515]
[1744856263881,2.98012,1584.5,1584.4,0.0094515]
[1744856264882,7.98012,1584.5,1584.4,0.0094515]
[1744856266686,2.98012,1584.5,1584.4,0.0094515]
[1744856273374,6.18792,1584.5,1584.4,0.0094515]
[1744856273582,2.98012,1584.5,1584.4,0.0094515]
[1744856277787,2.98012,1584.5,1584.0,8.97314362]
[1744856277788,1.26264,1584.1,1584.0,8.97314362]
[1744856277988,5.47364,1584.1,1584.0,8.97314362]
[1744856278383,5.47364,1584.1,1584.0,10.72454362]
[1744856279794,5.47364,1584.1,1584.0,4.9592]
[1744856283188,5.47364,1584.1,1584.0,1.7514]
[1744856283692,5.47364,1584.1,1583.8,3.2078]
[1744856283693,1.2628,1583.9,1583.8,3.2078]
[1744856283883,1.2628,1583.9,1583.8,4.8057]
[1744856284289,3.0141,1583.9,1583.8,4.8057]
[1744856285194,1.2628,1583.9,1583.8,4.8057]
[1744856286096,1.2628,1583.9,1583.8,1.5979]
[1744856287589,1.2628,1583.9,1583.8,4.8057]
[1744856289398,5.8802,1584.1,1583.8,9.8057]
[1744856289698,1.26276,1584.0,1583.9,1.6655]
[1744856289896,1.2628,1583.9,1583.8,3.2078]
[1744856290399,1.2628,1583.9,1583.8,4.8078]
[1744856290898,1.26278,1584.0,1583.8,2.86288]
[1744856291103,1.26272,1584.0,1583.9,1.6]
[1744856292303,5.47369,1584.1,1583.9,2.86277]
[1744856292507,5.47364,1584.1,1584.0,4.0202]
[1744856292697,5.47364,1584.1,1584.0,6.4509]
[1744856293196,4.6144,1584.2,1584.0,7.71358]
[1744856293395,4.211,1584.2,1584.1,1.5955]
[1744856293595,4.211,1584.2,1584.1,2.85814]
[1744856294604,8.8582,1584.5,1584.3,1.26246]
[1744856294805,1.26232,1584.5,1584.4,2.4307]
[1744856295106,1.26232,1584.5,1584.4,3.2572]
[1744856296103,1.2624,1584.4,1584.3,3.2078]
[1744856296500,1.2624,1584.4,1584.3,4.47028]
[1744856297106,3.78606,1584.5,1584.3,3.2078]
[1744856297306,3.78606,1584.5,1584.4,1.696]
[1744856298007,4.211,1584.6,1584.4,1.696]
[1744856298193,4.211,1584.6,1584.5,4.0393]
[1744856298392,4.211,1584.6,1584.5,5.30162]
[1744856298596,4.211,1584.6,1584.5,6.99762]
[1744856300607,5.47324,1584.6,1584.5,2.5275]
[1744856301001,4.211,1584.6,1584.5,3.78982]
[1744856301209,4.211,1584.6,1584.5,6.99762]
[1744856302505,6.3220415,1584.8,1584.6,1.2622]
[1744856302706,7.2058415,1584.8,1584.7,3.2078]
[1744856302908,8.0157415,1584.8,1584.7,3.2078]
[1744856303105,8.0157415,1584.8,1584.7,4.9374]
[1744856305711,6.7536515,1584.8,1584.7,4.9374]
[1744856306912,8.0157315,1584.8,1584.7,4.9374]
[1744856308506,6.7536515,1584.8,1584.7,4.9374]
[1744856308806,8.0157315,1584.8,1584.7,4.9374]
[1744856311004,4.2194515,1584.8,1584.7,7.06836]
[1744856312211,4.2194515,1584.8,1584.7,5.8062]
[1744856312212,5.4815315,1584.8,1584.7,5.8062]
[1744856313205,5.4815315,1584.8,1584.7,3.2078]
[1744856313412,1.26224,1584.6,1584.5,11.06696362]
[1744856313609,1.26224,1584.6,1584.5,12.82786362]
[1744856313805,1.26224,1584.6,1584.5,11.56554362]
[1744856314407,1.26224,1584.6,1584.5,12.82786362]
[1744856314609,1.26224,1584.6,1584.5,11.56554362]
[1744856315105,1.26224,1584.6,1584.5,12.82786362]
[1744856315310,3.81983,1584.7,1584.5,12.82786362]
[1744856315508,3.81983,1584.7,1584.6,1.26224]
[1744856315708,3.81983,1584.7,1584.6,2.88494]
[1744856315907,3.81983,1584.7,1584.6,1.6227]
[1744856316409,3.81983,1584.7,1584.6,2.88494]
[1744856316615,2.5576,1584.7,1584.6,2.88494]
[1744856317713,3.81976,1584.7,1584.6,2.88494]
[1744856318108,2.5576,1584.7,1584.6,2.88494]
[1744856318308,6.2917515,1584.8,1584.7,1.26216]
[1744856318512,6.2917515,1584.8,1584.7,6.20496]
[1744856318713,4.2194515,1584.8,1584.7,6.20496]
[1744856319716,0.0094515,1584.8,1584.7,6.20496]
[1744856321820,6.32597,1585.1,1585.0,1.26193]
[1744856322120,6.32597,1585.1,1585.0,4.46973]
[1744856322317,7.96452,1585.3,1585.1,1.2618]
[1744856322510,1.26177,1585.2,1585.1,3.4132]
[1744856322706,1.6624,1585.2,1585.1,4.67505]
[1744856323212,7.1338915,1585.3,1585.1,3.4132]
[1744856323416,5.8721515,1585.3,1585.2,6.21637]
[1744856323818,7.1338415,1585.3,1585.2,6.21637]
[1744856324021,7.1338415,1585.3,1585.2,4.9546]
[1744856324321,7.1338415,1585.3,1585.2,3.2078]
[1744856325007,7.1338415,1585.3,1585.2,4.9546]
[1744856327422,7.1338415,1585.3,1585.2,3.2078]
[1744856328321,5.0498515,1585.3,1585.2,6.21757]
[1744856328820,6.3115415,1585.3,1585.2,6.21757]
[1744856329627,5.0498515,1585.3,1585.2,6.21757]
[1744856330126,4.2184515,1585.3,1585.2,6.21757]
[1744856330520,4.2184515,1585.3,1585.2,11.98291362]
[1744856332422,0.0094515,1585.3,1585.2,11.98291362]
[1744856338129,1.2711415,1585.3,1585.2,10.72114362]
[1744856338329,0.0094515,1585.3,1585.2,11.98291362]
[1744856338838,1.2711415,1585.3,1585.2,11.98291362]
[1744856339038,0.0094515,1585.3,1585.2,11.98291362]
[1744856340238,1.2711415,1585.3,1585.2,10.72114362]
[1744856340428,3.0270415,1585.3,1585.2,5.76534362]
[1744856340830,8.0270415,1585.3,1585.2,5.75589062]
[1744856341329,1.26185,1585.1,1585.0,0.0094515]
[1744856341635,5.46885,1585.1,1585.0,0.0094515]
[1744856341835,10.46885,1585.1,1585.0,0.0094515]
[1744856342136,12.21115,1585.1,1585.0,0.0094515]
[1744856344338,7.21115,1585.1,1585.0,0.0094515]
[1744856350238,15.41895,1585.1,1585.0,0.0094515]
[1744856352450,1.26224,1584.6,1584.5,5.75589062]
[1744856352739,4.207,1584.6,1584.4,10.57439062]
[1744856352946,1.26232,1584.5,1584.4,10.57439062]
[1744856353139,2.91302,1584.5,1584.4,10.57439062]
[1744856354345,1.6507,1584.5,1584.4,10.57439062]
[1744856355041,2.91302,1584.5,1584.4,10.57439062]
[1744856355248,1.2624,1584.4,1584.2,9.78619062]
[1744856355446,4.5816,1584.4,1584.2,11.38529062]
[1744856355643,1.26248,1584.3,1584.2,11.38529062]
[1744856355841,7.13738,1584.3,1584.2,7.35499062]
[1744856356142,7.13738,1584.3,1584.2,5.75589062]
[1744856356647,12.13738,1584.3,1584.2,5.75589062]
[1744856357441,7.13738,1584.3,1584.2,5.75589062]
[1744856357650,7.63378484,1584.3,1584.2,5.75589062]
[1744856359654,7.13738,1584.3,1584.2,5.75589062]
[1744856360354,7.13738,1584.3,1584.2,7.50999062]
[1744856360355,5.8749,1584.3,1584.2,7.50999062]
[1744856360544,7.13738,1584.3,1584.2,7.50999062]
[1744856360955,7.13738,1584.3,1584.2,1.7541]
[1744856361952,2.93038,1584.3,1584.2,1.7541]
[1744856362157,5.47048,1584.3,1584.2,1.7541]
[1744856362861,7.11688,1584.3,1584.2,1.7541]
[1744856363959,1.26256,1584.2,1584.1,4.0343]
[1744856364157,2.90896,1584.2,1584.1,4.0343]
[1744856364661,2.90896,1584.2,1584.1,5.8007]
[1744856366475,2.90896,1584.2,1584.1,4.9742]
[1744856369876,1.6464,1584.2,1584.1,6.23684]
[1744856370077,2.90896,1584.2,1584.1,4.9742]
[1744856372373,2.90896,1584.2,1584.1,3.2078]
[1744856372779,1.26272,1584.0,1583.9,8.96369062]
[1744856372983,5.47172,1584.0,1583.9,8.96369062]
[1744856373480,7.13472,1584.0,1583.9,8.96369062]
[1744856373874,7.13472,1584.0,1583.9,3.2078]
[1744856378183,1.2628,1583.9,1583.8,1.5995]
[1744856379882,2.9599,1583.9,1583.8,1.5995]
[1744856380084,1.26288,1583.8,1583.7,1.6688]
[1744856380286,4.64348,1583.8,1583.7,2.555]
[1744856380785,4.64348,1583.8,1583.7,1.7398]
[1744856381088,1.26296,1583.7,1583.6,6.62979062]
[1744856381277,3.00346,1583.7,1583.6,8.31049062]
[1744856381481,7.21246,1583.7,1583.6,8.31049062]
[1744856382482,5.47196,1583.7,1583.6,8.31049062]
[1744856382988,7.21246,1583.7,1583.6,7.43659062]
[1744856384488,7.21246,1583.7,1583.6,1.6807]
[1744856385997,4.209,1583.7,1583.6,1.6807]
[1744856386183,4.209,1583.7,1583.6,3.80714]
[1744856386380,5.47196,1583.7,1583.6,3.80714]
[1744856386886,5.47196,1583.7,1583.6,2.5441]
[1744856389185,5.47196,1583.7,1583.6,3.80714]
[1744856389384,4.209,1583.7,1583.6,3.80714]
[1744856389585,5.47196,1583.7,1583.6,3.80714]
[1744856390183,4.209,1583.7,1583.6,9.56303062]
[1744856393894,5.47196,1583.7,1583.6,9.56303062]
[1744856394199,5.47196,1583.7,1583.6,7.43659062]
[1744856394598,5.47196,1583.7,1583.6,8.69963062]
[1744856394991,5.47196,1583.7,1583.6,8.29349062]
[1744856395401,4.209,1583.7,1583.6,9.55653062]
[1744856396106,4.209,1583.7,1583.6,3.80064]
[1744856397998,5.47196,1583.7,1583.6,3.80064]
[1744856399104,4.209,1583.7,1583.6,3.80064]
[1744856400003,5.47196,1583.7,1583.6,3.80064]
[1744856400407,4.209,1583.7,1583.6,3.80064]
[1744856400603,5.47196,1583.7,1583.6,3.80064]
[1744856401104,4.209,1583.7,1583.6,3.80064]
[1744856404409,5.47196,1583.7,1583.6,3.80064]
[1744856404607,4.209,1583.7,1583.6,3.80064]
[1744856405813,4.209,1583.7,1583.6,7.00844]
[1744856407414,4.209,1583.7,1583.6,3.80064]
[1744856407711,4.209,1583.7,1583.6,7.00844]
[1744856408219,5.47196,1583.7,1583.6,7.00844]
[1744856409217,4.209,1583.7,1583.6,7.00844]
[1744856409709,5.0168,1583.7,1583.6,7.00844]
[1744856412019,0.8468,1584.0,1583.9,1.2628]
[1744856412220,5.0558,1584.0,1583.9,1.2628]
[1744856412517,6.31852,1584.0,1583.9,1.6186]
[1744856412711,8.08702,1584.0,1583.9,2.8814]
[1744856413213,6.8243,1584.0,1583.9,2.8814]
[1744856413415,4.209,1584.0,1583.9,3.717]
[1744856414320,1.26249,1584.3,1584.2,1.26255]
[1744856414521,1.26249,1584.3,1584.1,4.4704]
[1744856414724,1.6355,1584.2,1584.1,4.4704]
[1744856415032,1.6355,1584.2,1584.1,6.0907]
[1744856417425,8.78323,1584.4,1584.3,4.8281]
[1744856417728,8.78323,1584.4,1584.3,3.2078]
[1744856418228,1.26252,1584.3,1584.1,6.23341]
[1744856418420,2.93382,1584.3,1584.1,6.23341]
[1744856418620,1.6713,1584.2,1584.1,6.23341]
[1744856418930,2.93386,1584.2,1584.1,4.9708]
[1744856420230,2.93386,1584.2,1584.1,3.2078]
[1744856422130,1.6713,1584.2,1584.1,4.47044]
[1744856422423,1.6713,1584.2,1584.1,6.07514]
[1744856422628,1.26248,1584.3,1584.2,1.26256]
[1744856422828,1.26248,1584.3,1584.2,2.86726]
[1744856423029,2.98578,1584.3,1584.2,1.6047]
[1744856423426,2.98578,1584.3,1584.1,4.47042]
[1744856423628,1.7025,1584.2,1584.1,4.47042]
[1744856423831,1.7025,1584.2,1584.1,6.19632]
[1744856425435,2.96506,1584.2,1584.1,4.9337]
[1744856425623,1.7025,1584.2,1584.1,6.19634]
[1744856425929,7.14777,1584.4,1584.2,1.26256]
[1744856426236,8.85027,1584.4,1584.3,3.2078]
[1744856427234,4.64227,1584.4,1584.3,3.2078]
[1744856427435,5.4788315,1584.5,1584.3,4.47023]
[1744856427635,5.4788315,1584.5,1584.4,2.5666]
[1744856428028,1.7260515,1584.5,1584.4,2.5666]
[1744856428329,1.2717715,1584.5,1584.4,3.829]
[1744856428526,1.2717715,1584.5,1584.4,1.7412]
[1744856428731,2.9883715,1584.5,1584.4,1.7412]
[1744856431736,2.9883715,1584.5,1584.4,4.949]
[1744856432232,2.9883715,1584.5,1584.4,3.2078]
[1744856432536,1.2624,1584.4,1584.3,1.6654]
[1744856432738,3.8428,1584.4,1584.3,1.6654]
[1744856436145,1.26248,1584.3,1584.2,3.2078]
[1744856436344,1.26264,1584.1,1584.0,3.2078]
[1744856436551,1.26277,1584.0,1583.9,3.2078]
[1744856436840,1.26277,1584.0,1583.9,4.8764]
[1744856439141,2.10889,1584.1,1583.9,6.1392]
[1744856439340,1.7499,1584.2,1584.0,1.26272]
[1744856439341,3.01251,1584.2,1584.0,1.26272]
[1744856439642,3.01251,1584.2,1584.1,3.2078]
[1744856440046,3.01251,1584.2,1584.1,4.8367]
[1744856441048,4.206,1584.3,1584.1,4.8367]
[1744856441248,2.12195,1584.4,1584.2,2.89146]
[1744856441448,7.1969315,1584.5,1584.3,6.09918]
[1744856441749,7.1969315,1584.5,1584.4,1.6712]
[1744856442342,0.0094515,1584.5,1584.4,8.68949062]
[1744856442545,0.0094515,1584.5,1584.4,10.41479062]
[1744856442846,1.2717715,1584.5,1584.4,7.42709062]
[1744856445538,2.1028715,1584.5,1584.4,7.42709062]
[1744856445950,2.1028715,1584.5,1584.4,1.6712]
[1744856449257,2.1028715,1584.5,1584.4,2.9336]
[1744856449453,0.0094515,1584.5,1584.4,2.9336]
[1744856450049,1.2717715,1584.5,1584.4,1.6712]
[1744856453145,1.2624,1584.4,1584.3,3.2078]
[1744856453350,1.2718315,1584.5,1584.3,6.14046]
[1744856453658,1.2718315,1584.5,1584.4,1.6702]
[1744856454158,2.8652315,1584.5,1584.4,1.6702]
[1744856456751,1.2624,1584.4,1584.3,3.2078]
[1744856456951,3.7391,1584.4,1584.3,3.2078]
[1744856457548,3.7391,1584.4,1584.3,4.8118]
[1744856459160,2.4767,1584.4,1584.3,6.07428]
[1744856459361,5.0098,1584.4,1584.3,6.07428]
[1744856459762,6.2722,1584.4,1584.3,4.8118]
[1744856460560,6.2722,1584.4,1584.3,1.604]
[1744856462858,1.26248,1584.3,1584.2,5.75589062]
[1744856463058,3.77418,1584.3,1584.2,5.75589062]
[1744856463265,1.26256,1584.2,1584.1,3.2078]
[1744856463560,2.96076,1584.2,1584.1,3.2078]
[1744856464052,9.8547,1584.2,1583.8,8.96369062]
[1744856464258,1.2628,1583.9,1583.8,3.2078]
[1744856464963,2.5117,1584.0,1583.7,21.00361728]
[1744856464964,1.26288,1583.8,1583.7,21.00361728]
[1744856465265,7.97108,1583.8,1583.7,21.00361728]
[1744856465455,6.7082,1583.8,1583.7,21.00361728]
[1744856465661,7.97108,1583.8,1583.7,22.76741728]
[1744856466366,7.97108,1583.8,1583.7,1.7638]
[1744856467663,1.26296,1583.7,1583.6,9.81229062]
[1744856467859,3.01396,1583.7,1583.6,9.81229062]
[1744856468462,3.01396,1583.7,1583.6,11.54999062]
[1744856468865,3.01396,1583.7,1583.6,10.70139062]
[1744856469065,3.88366,1583.7,1583.6,8.96369062]
[1744856469265,6.27293,1583.8,1583.6,8.96369062]
[1744856469465,6.27293,1583.8,1583.7,1.6243]
[1744856469673,5.46793,1583.8,1583.7,1.6243]
[1744856469874,4.205,1583.8,1583.7,4.50866]
[1744856470175,5.46761,1584.2,1584.0,1.26272]
[1744856470373,3.1653515,1584.5,1584.1,2.88694]
[1744856470374,2.91803,1584.3,1584.1,2.88694]
[1744856470572,2.91803,1584.3,1584.2,1.6243]
[1744856470774,7.16475,1584.4,1584.2,6.09466]
[1744856471271,7.16475,1584.4,1584.3,1.6243]
[1744856471472,7.16475,1584.4,1584.3,2.88678]
[1744856471473,4.205,1584.4,1584.3,2.88678]
[1744856472173,1.2717815,1584.5,1584.3,2.88678]
[1744856472368,1.2717815,1584.5,1584.4,4.8871]
[1744856472865,2.9992815,1584.5,1584.4,4.8871]
[1744856473975,1.26248,1584.3,1584.2,7.43519062]
[1744856474373,1.26256,1584.2,1584.1,3.2078]
[1744856474676,1.26266,1584.1,1583.9,12.72827062]
[1744856474873,1.26266,1584.1,1584.0,1.6793]
[1744856475274,2.99012,1584.2,1584.0,2.94201]
[1744856475475,2.99012,1584.2,1584.1,3.2078]
[1744856475775,2.99012,1584.2,1584.1,4.8149]
[1744856481682,2.99012,1584.2,1584.1,1.6071]
[1744856481878,1.26271,1584.1,1583.9,11.04893062]
[1744856482086,2.96671,1584.1,1584.0,1.6154]
[1744856487679,1.26272,1584.0,1583.9,9.78619062]
[1744856487882,3.67252,1584.0,1583.9,11.38909062]
[1744856488279,2.07282,1584.0,1583.9,11.38909062]
[1744856489688,1.26272,1584.0,1583.9,11.38909062]
[1744856490584,2.86238,1584.1,1583.9,12.65185062]
[1744856490783,2.86238,1584.1,1584.0,1.6859]
[1744856492082,1.26272,1584.0,1583.9,9.78619062]
[1744856492285,5.8856,1584.0,1583.7,3.2078]
[1744856492582,1.26304,1583.6,1583.5,10.67159062]
[1744856492785,5.46704,1583.6,1583.5,4.9157]
[1744856493784,7.09394,1583.6,1583.5,4.0702]
[1744856494088,7.94234,1583.6,1583.5,4.0702]
[1744856494586,7.94234,1583.6,1583.5,5.748]
[1744856496391,7.94234,1583.6,1583.5,4.8856]
[1744856503094,7.94234,1583.6,1583.5,6.14872]
[1744856503294,5.0524,1583.6,1583.5,6.14872]
[1744856503494,6.31544,1583.6,1583.5,4.8856]
[1744856503993,4.204,1583.6,1583.5,6.14872]
[1744856504397,7.63100638,1584.0,1583.8,1.26284]
[1744856504594,4.71503638,1584.0,1583.9,6.1594]
[1744856505087,4.205,1584.0,1583.9,6.1594]
[1744856505395,91.73,1584.1,1584.0,1.26272]
[1744856505595,2.91572,1584.3,1584.1,1.26262]
[1744856505793,1.26252,1584.3,1584.2,1.667]
[1744856505996,5.46552,1584.3,1584.2,1.667]
[1744856506293,5.46552,1584.3,1584.0,2.96855]
[1744856506294,1.26264,1584.1,1584.0,1.7059]
[1744856506686,1.26264,1584.1,1584.0,3.3729]
[1744856507089,2.90182,1584.2,1584.0,4.63562]
[1744856507392,2.90182,1584.2,1584.1,1.667]
[1744856509300,2.90182,1584.2,1584.1,4.8748]
[1744856510204,2.90182,1584.2,1584.1,1.667]
[1744856511699,1.26264,1584.1,1583.9,4.47056]
[1744856511904,3.78814,1584.1,1584.0,1.6798]
[1744856512302,1.26272,1584.0,1583.9,3.2078]
[1744856512605,7.98182,1584.0,1583.9,3.2078]
[1744856512992,6.7191,1584.0,1583.9,4.4706]
[1744856513299,7.98182,1584.0,1583.9,4.8876]
[1744856513701,7.98182,1584.0,1583.9,3.2078]
[1744856514904,7.98182,1584.0,1583.9,4.4706]
[1744856515107,6.7191,1584.0,1583.9,4.4706]